[Event "NJSK 2022 Jeugd C"]
[Site "Almelo, Netherlands"]
[Date "2022.05.04"]
[Round "5.10"]
[White "Terlouw, Wouter"]
[Black "Kumar, Prayan Sai"]
[Result "1-0"]
[TimeControl "90min + 30sec/move"]
[WhiteElo "1578"]
[BlackElo "1562"]

1. d4 {[%clk 01:30:56]} {[%emt 00:00:03]} Nf6 {[%clk 01:30:53]} {[%emt
00:00:08]} 2. c4 {[%clk 01:31:20]} {[%emt 00:00:06]} e6 {[%clk 01:31:12]}
{[%emt 00:00:11]} 3. g3 {[%clk 01:31:45]} {[%emt 00:00:05]} d5 {[%clk
01:31:18]} {[%emt 00:00:24]} 4. Bg2 {[%clk 01:32:02]} {[%emt 00:00:13]} Be7
{[%clk 01:31:13]} {[%emt 00:00:36]} 5. Nf3 {[%clk 01:32:24]} {[%emt 00:00:08]}
O-O {[%clk 01:31:29]} {[%emt 00:00:13]} 6. O-O {[%clk 01:32:30]} {[%emt
00:00:23]} dxc4 {[%clk 01:31:48]} {[%emt 00:00:11]} 7. Nbd2 {[%clk 01:32:14]}
{[%emt 00:00:46]} Nbd7 {[%clk 01:26:36]} {[%emt 00:05:43]} 8. Nxc4 {[%clk
01:30:44]} {[%emt 00:02:00]} a6 {[%clk 01:26:10]} {[%emt 00:00:57]} 9. a4
{[%clk 01:28:06]} {[%emt 00:03:07]} Rb8 {[%clk 01:22:43]} {[%emt 00:03:57]} 10.
Qc2 {[%clk 01:24:23]} {[%emt 00:04:13]} c5 {[%clk 01:12:21]} {[%emt 00:10:52]}
11. Bf4 {[%clk 01:18:40]} {[%emt 00:06:12]} Ra8 {[%clk 01:12:13]} {[%emt
00:00:39]} 12. Rfd1 {[%clk 01:16:36]} {[%emt 00:02:34]} Nd5 {[%clk 01:00:53]}
{[%emt 00:11:50]} 13. Qc1 {[%clk 01:03:46]} {[%emt 00:13:17]} Nxf4 {[%clk
00:53:27]} {[%emt 00:07:58]} 14. Qxf4 {[%clk 01:03:52]} {[%emt 00:00:23]} Qe8
{[%clk 00:39:20]} {[%emt 00:14:39]} 15. Nfe5 {[%clk 00:58:02]} {[%emt
00:06:19]} Ra7 {[%clk 00:27:58]} {[%emt 00:11:52]} 16. Rd3 {[%clk 00:45:54]}
{[%emt 00:17:17]} f6 {[%clk 00:14:38]} {[%emt 00:09:43]} 17. Nxd7 {[%clk
00:44:24]} {[%emt 00:02:00]} Bxd7 {[%clk 00:13:05]} {[%emt 00:02:03]} 18. dxc5
{[%clk 00:43:20]} {[%emt 00:01:34]} Bxc5 {[%clk 00:08:54]} {[%emt 00:04:40]} 19.
Qc7 {[%clk 00:38:04]} {[%emt 00:05:47]} Bc6 {[%clk 00:08:16]} {[%emt 00:01:08]}
20. Na5 {[%clk 00:36:29]} {[%emt 00:02:05]} Qc8 {[%clk 00:03:59]} {[%emt
00:04:46]} 21. Qxc8 {[%clk 00:35:32]} {[%emt 00:01:28]} Rxc8 {[%clk 00:04:24]}
{[%emt 00:00:05]} 22. Nxc6 {[%clk 00:35:32]} {[%emt 00:00:29]} bxc6 {[%clk
00:04:43]} {[%emt 00:00:11]} 23. Rc1 {[%clk 00:35:45]} {[%emt 00:00:17]} Bb4
{[%clk 00:03:37]} {[%emt 00:01:37]} 24. Rxc6 {[%clk 00:34:23]} {[%emt
00:01:51]} Rxc6 {[%clk 00:03:42]} {[%emt 00:00:25]} 25. Bxc6 {[%clk 00:34:47]}
{[%emt 00:00:06]} Rc7 {[%clk 00:04:08]} {[%emt 00:00:05]} 26. Bf3 {[%clk
00:33:47]} {[%emt 00:01:29]} e5 {[%clk 00:03:58]} {[%emt 00:00:40]} 27. b3
{[%clk 00:32:17]} {[%emt 00:02:01]} a5 {[%clk 00:04:04]} {[%emt 00:00:25]} 28.
Rd8+ {[%clk 00:31:15]} {[%emt 00:01:31]} Kf7 {[%clk 00:04:19]} {[%emt
00:00:15]} 29. Bd5+ {[%clk 00:30:20]} {[%emt 00:01:24]} Kg6 {[%clk 00:04:28]}
{[%emt 00:00:22]} 30. Bc4 {[%clk 00:29:00]} {[%emt 00:01:50]} Re7 {[%clk
00:03:46]} {[%emt 00:01:12]} 31. f3 {[%clk 00:27:59]} {[%emt 00:01:31]} Bc5+
{[%clk 00:04:11]} {[%emt 00:00:05]} 32. Kg2 {[%clk 00:28:14]} {[%emt 00:00:14]}
Kh6 {[%clk 00:03:54]} {[%emt 00:00:48]} 33. g4 {[%clk 00:26:05]} {[%emt
00:02:39]} e4 {[%clk 00:04:01]} {[%emt 00:00:22]} 34. f4 {[%clk 00:24:08]}
{[%emt 00:02:26]} e3 {[%clk 00:04:26]} {[%emt 00:00:07]} 35. Rd5 {[%clk
00:24:18]} {[%emt 00:00:20]} Bb4 {[%clk 00:04:37]} {[%emt 00:00:19]} 36. Rh5+
{[%clk 00:24:39]} {[%emt 00:00:09]} Kg6 {[%clk 00:04:58]} {[%emt 00:00:09]} 37.
f5# {[%clk 00:25:00]} {[%emt 00:00:08]} 1-0

[Event "NJSK 2022 Jeugd C"]
[Site "Almelo, Netherlands"]
[Date "2022.05.04"]
[Round "5.11"]
[White "Krylov, Philippe"]
[Black "Venema, Maxime"]
[Result "1-0"]
[TimeControl "90min + 30sec/move"]
[WhiteElo "1817"]
[BlackElo "1614"]

1. c4 {[%clk 01:30:58]} {[%emt 00:00:02]} Nf6 {[%clk 01:30:47]} {[%emt
00:00:13]} 2. Nc3 {[%clk 01:31:25]} {[%emt 00:00:04]} g6 {[%clk 01:30:53]}
{[%emt 00:00:23]} 3. d4 {[%clk 01:31:48]} {[%emt 00:00:07]} Bg7 {[%clk
01:31:05]} {[%emt 00:00:18]} 4. Nf3 {[%clk 01:32:13]} {[%emt 00:00:05]} d6
{[%clk 01:31:16]} {[%emt 00:00:20]} 5. Bf4 {[%clk 01:32:39]} {[%emt 00:00:03]}
Nbd7 {[%clk 01:30:41]} {[%emt 00:01:04]} 6. e3 {[%clk 01:33:03]} {[%emt
00:00:06]} O-O {[%clk 01:31:02]} {[%emt 00:00:10]} 7. Be2 {[%clk 01:33:31]}
{[%emt 00:00:02]} Re8 {[%clk 01:30:30]} {[%emt 00:01:02]} 8. h3 {[%clk
01:33:53]} {[%emt 00:00:08]} h5 {[%clk 01:30:29]} {[%emt 00:00:31]} 9. O-O
{[%clk 01:34:05]} {[%emt 00:00:18]} c6 {[%clk 01:30:15]} {[%emt 00:00:44]} 10.
b4 {[%clk 01:33:29]} {[%emt 00:01:06]} Nh7 {[%clk 01:27:54]} {[%emt 00:02:51]}
11. Rc1 {[%clk 01:29:28]} {[%emt 00:04:32]} e5 {[%clk 01:27:43]} {[%emt
00:00:40]} 12. Bh2 {[%clk 01:29:49]} {[%emt 00:00:09]} Qe7 {[%clk 01:25:57]}
{[%emt 00:02:16]} 13. Re1 {[%clk 01:29:02]} {[%emt 00:01:16]} e4 {[%clk
01:26:09]} {[%emt 00:00:19]} 14. Nd2 {[%clk 01:29:18]} {[%emt 00:00:14]} Nhf6
{[%clk 01:24:44]} {[%emt 00:01:55]} 15. Qc2 {[%clk 01:28:33]} {[%emt 00:01:15]}
d5 {[%clk 01:25:00]} {[%emt 00:00:15]} 16. cxd5 {[%clk 01:28:22]} {[%emt
00:00:41]} cxd5 {[%clk 01:25:22]} {[%emt 00:00:07]} 17. Nb5 {[%clk 01:28:19]}
{[%emt 00:00:32]} Nb6 {[%clk 01:21:12]} {[%emt 00:04:41]} 18. Nc7 {[%clk
01:28:07]} {[%emt 00:00:42]} Bf5 {[%clk 01:20:00]} {[%emt 00:01:41]} 19. Nxa8
{[%clk 01:27:59]} {[%emt 00:00:39]} Rxa8 {[%clk 01:20:06]} {[%emt 00:00:24]} 20.
a3 {[%clk 01:28:03]} {[%emt 00:00:26]} Nh7 {[%clk 01:20:01]} {[%emt 00:00:35]}
21. Qc7 {[%clk 01:27:28]} {[%emt 00:01:06]} Qd7 {[%clk 01:17:38]} {[%emt
00:02:52]} 22. Qxd7 {[%clk 01:27:29]} {[%emt 00:00:29]} Bxd7 {[%clk 01:18:00]}
{[%emt 00:00:07]} 23. Rc7 {[%clk 01:27:47]} {[%emt 00:00:12]} Bc6 {[%clk
01:18:23]} {[%emt 00:00:08]} 24. b5 {[%clk 01:27:32]} {[%emt 00:00:46]} Be8
{[%clk 01:16:59]} {[%emt 00:01:54]} 25. Rec1 {[%clk 01:26:57]} {[%emt
00:01:04]} Bf8 {[%clk 01:17:06]} {[%emt 00:00:23]} 26. Nb1 {[%clk 01:26:17]}
{[%emt 00:01:10]} Ng5 {[%clk 01:16:36]} {[%emt 00:00:59]} 27. Rxb7 {[%clk
01:26:13]} {[%emt 00:00:35]} Ne6 {[%clk 01:16:50]} {[%emt 00:00:16]} 28. Rb8
{[%clk 01:26:30]} {[%emt 00:00:14]} Bd7 {[%clk 01:15:40]} {[%emt 00:01:39]} 29.
Bd6 {[%clk 01:24:26]} {[%emt 00:02:33]} Kg7 {[%clk 01:14:35]} {[%emt 00:01:35]}
30. Bxf8+ {[%clk 01:24:50]} {[%emt 00:00:07]} Nxf8 {[%clk 01:14:58]} {[%emt
00:00:07]} 31. Rxa8 {[%clk 01:25:15]} {[%emt 00:00:05]} Nxa8 {[%clk 01:15:23]}
{[%emt 00:00:06]} 32. Nc3 {[%clk 01:25:11]} {[%emt 00:00:34]} Nb6 {[%clk
01:15:19]} {[%emt 00:00:34]} 33. a4 {[%clk 01:25:32]} {[%emt 00:00:09]} Ne6
{[%clk 01:15:24]} {[%emt 00:00:24]} 34. a5 {[%clk 01:25:55]} {[%emt 00:00:08]}
Nc8 {[%clk 01:15:34]} {[%emt 00:00:19]} 35. Nxd5 {[%clk 01:26:14]} {[%emt
00:00:11]} f5 {[%clk 01:15:10]} {[%emt 00:00:54]} 36. b6 {[%clk 01:26:37]}
{[%emt 00:00:07]} axb6 {[%clk 01:15:36]} {[%emt 00:00:04]} 37. Nxb6 {[%clk
01:27:01]} {[%emt 00:00:06]} Nxb6 {[%clk 01:15:53]} {[%emt 00:00:13]} 38. axb6
{[%clk 01:27:26]} {[%emt 00:00:05]} Nd8 {[%clk 01:13:56]} {[%emt 00:02:26]} 39.
Rc7 {[%clk 01:27:53]} {[%emt 00:00:04]} 1-0

[Event "NJSK 2022 Jeugd C"]
[Site "Almelo, Netherlands"]
[Date "2022.05.04"]
[Round "5.12"]
[White "Franco, Hugo"]
[Black "Bosma, Jonathan"]
[Result "1-0"]
[TimeControl "90min + 30sec/move"]
[WhiteElo "1441"]
[BlackElo "884"]

1. e4 {[%clk 01:30:56]} {[%emt 00:00:04]} e6 {[%clk 01:30:48]} {[%emt
00:00:12]} 2. d4 {[%emt 00:00:54]} d5 {[%clk 01:30:44]} 3. e5 {[%clk 01:31:12]}
{[%emt 00:00:24]} c5 {[%clk 01:30:26]} {[%emt 00:00:48]} 4. c3 {[%clk
01:31:02]} {[%emt 00:00:40]} Nc6 {[%clk 01:30:26]} {[%emt 00:00:31]} 5. Nf3
{[%clk 01:31:07]} {[%emt 00:00:23]} cxd4 {[%clk 01:30:00]} {[%emt 00:00:56]} 6.
cxd4 {[%clk 01:31:22]} {[%emt 00:00:15]} f6 {[%clk 01:30:17]} {[%emt 00:00:14]}
7. Bb5 {[%clk 01:30:16]} {[%emt 00:01:36]} Qa5+ {[%clk 01:29:40]} {[%emt
00:01:07]} 8. Nc3 {[%clk 01:30:25]} {[%emt 00:00:21]} Bb4 {[%clk 01:30:00]}
{[%emt 00:00:09]} 9. exf6 {[%clk 01:29:00]} {[%emt 00:01:56]} Nxf6 {[%clk
01:29:31]} {[%emt 00:00:59]} 10. Bxc6+ {[%clk 01:29:16]} {[%emt 00:00:14]} bxc6
{[%clk 01:29:48]} {[%emt 00:00:13]} 11. Bd2 {[%clk 01:28:48]} {[%emt 00:00:57]}
Bd6 {[%clk 01:29:04]} {[%emt 00:01:15]} 12. Ne4 {[%clk 01:27:16]} {[%emt
00:02:02]} Qd8 {[%clk 01:28:37]} {[%emt 00:00:56]} 13. Nxd6+ {[%clk 01:27:10]}
{[%emt 00:00:37]} Qxd6 {[%clk 01:28:57]} {[%emt 00:00:09]} 14. O-O {[%clk
01:27:26]} {[%emt 00:00:15]} O-O {[%clk 01:28:32]} {[%emt 00:00:55]} 15. a3
{[%clk 01:27:37]} {[%emt 00:00:19]} a5 {[%clk 01:27:46]} {[%emt 00:01:16]} 16.
b4 {[%clk 01:26:32]} {[%emt 00:01:36]} Ne4 {[%clk 01:26:43]} {[%emt 00:01:31]}
17. bxa5 {[%clk 01:21:23]} {[%emt 00:05:40]} Nxd2 {[%clk 01:26:13]} {[%emt
00:01:00]} 18. Qxd2 {[%clk 01:21:43]} {[%emt 00:00:10]} c5 {[%clk 01:18:04]}
{[%emt 00:08:39]} 19. dxc5 {[%clk 01:17:14]} {[%emt 00:05:00]} Qxc5 {[%clk
01:18:05]} {[%emt 00:00:28]} 20. Ng5 {[%clk 01:15:55]} {[%emt 00:01:47]} Rxa5
{[%clk 01:17:37]} {[%emt 00:01:00]} 21. Qd3 {[%clk 01:16:00]} {[%emt 00:00:25]}
g6 {[%clk 01:17:12]} {[%emt 00:00:55]} 22. Qh3 {[%clk 01:01:31]} {[%emt
00:15:00]} Qe7 {[%clk 01:17:20]} {[%emt 00:00:17]} 23. Qc3 {[%clk 01:00:13]}
{[%emt 00:01:52]} Ra4 {[%clk 01:14:04]} {[%emt 00:03:46]} 24. Nf3 {[%clk
00:56:22]} {[%emt 00:04:21]} Qf6 {[%clk 01:13:44]} {[%emt 00:00:42]} 25. Qb3
{[%clk 00:53:18]} {[%emt 00:03:42]} Ra7 {[%clk 01:11:08]} {[%emt 00:02:31]} 26.
a4 {[%clk 00:47:27]} {[%emt 00:06:56]} d4 {[%clk 01:10:42]} {[%emt 00:00:55]}
27. Rad1 {[%clk 00:47:02]} {[%emt 00:00:56]} Rd7 {[%clk 01:10:00]} {[%emt
00:00:56]} 28. Rd2 {[%clk 00:46:55]} {[%emt 00:00:52]} Kg7 {[%clk 01:07:40]}
{[%emt 00:02:51]} 29. Re1 {[%clk 00:45:04]} {[%emt 00:02:20]} Re8 {[%clk
01:04:54]} {[%emt 00:03:15]} 30. Qc4 {[%clk 00:39:22]} {[%emt 00:06:13]} e5
{[%clk 01:03:43]} {[%emt 00:01:41]} 31. Nxd4 {[%clk 00:38:43]} {[%emt
00:01:09]} Rxd4 {[%clk 00:58:15]} {[%emt 00:05:59]} 32. Rxd4 {[%clk 00:38:37]}
{[%emt 00:00:36]} exd4 {[%clk 00:58:40]} {[%emt 00:00:05]} 33. Rxe8 {[%clk
00:38:37]} {[%emt 00:00:30]} Bg4 {[%clk 00:55:46]} {[%emt 00:03:23]} 34. Re4
{[%clk 00:36:00]} {[%emt 00:03:07]} d3 {[%clk 00:49:28]} {[%emt 00:06:48]} 35.
Qxd3 {[%clk 00:35:42]} {[%emt 00:00:48]} Bf5 {[%clk 00:49:39]} {[%emt
00:00:20]} 36. g3 {[%clk 00:34:54]} {[%emt 00:01:17]} Qb6 {[%clk 00:28:43]}
{[%emt 00:21:26]} 37. Qc3+ {[%clk 00:33:58]} {[%emt 00:01:27]} Kf7 {[%clk
00:26:20]} {[%emt 00:02:52]} 38. a5 {[%clk 00:31:32]} {[%emt 00:02:57]} Qb1+
{[%clk 00:25:46]} {[%emt 00:01:04]} 39. Re1 {[%clk 00:31:55]} {[%emt 00:00:06]}
Qb7 {[%clk 00:25:31]} {[%emt 00:00:42]} 40. Qc4+ {[%clk 00:28:51]} {[%emt
00:03:38]} Kf6 {[%clk 00:25:14]} {[%emt 00:00:47]} 41. a6 {[%emt 00:00:53]} Qf3
{[%clk 00:25:03]} {[%emt 00:00:06]} 42. Qc5 {[%clk 00:27:48]} {[%emt 00:01:44]}
g5 {[%clk 00:22:30]} {[%emt 00:03:03]} 43. Qd6+ {[%clk 00:27:12]} {[%emt
00:01:07]} Be6 {[%clk 00:21:06]} {[%emt 00:01:45]} 44. Qxe6+ {[%clk 00:27:16]}
{[%emt 00:00:35]} Kg7 {[%clk 00:21:27]} {[%emt 00:00:08]} 45. Qd6 {[%clk
00:27:06]} {[%emt 00:00:41]} Qf6 {[%clk 00:20:00]} {[%emt 00:01:53]} 46. Qxf6+
{[%clk 00:27:14]} {[%emt 00:00:27]} Kxf6 {[%clk 00:20:28]} {[%emt 00:00:02]} 47.
a7 {[%clk 00:27:35]} {[%emt 00:00:08]} Kg6 {[%clk 00:20:29]} {[%emt 00:00:30]}
48. a8=Q {[%clk 00:27:48]} {[%emt 00:00:15]} Kh5 {[%clk 00:20:29]} {[%emt
00:00:31]} 49. Qe8+ {[%clk 00:27:43]} {[%emt 00:00:36]} Kg4 {[%clk 00:20:28]}
{[%emt 00:00:27]} 50. h3+ {[%clk 00:28:04]} {[%emt 00:00:13]} Kf5 {[%clk
00:20:06]} {[%emt 00:00:35]} 51. Qf7# {[%emt 00:01:09]} 1-0

[Event "NJSK 2022 Jeugd C"]
[Site "Almelo, Netherlands"]
[Date "2022.05.05"]
[Round "6.1"]
[White "Zhu, Chenwu"]
[Black "De Winter, Arthur"]
[Result "0-1"]
[TimeControl "90min + 30sec/move"]
[WhiteElo "1968"]
[BlackElo "2138"]

1. e4 {[%clk 01:30:57]} {[%emt 00:00:02]} c5 {[%clk 01:30:57]} {[%emt
00:00:03]} 2. Nf3 {[%clk 01:31:22]} {[%emt 00:00:06]} Nc6 {[%clk 01:31:25]}
{[%emt 00:00:02]} 3. d4 {[%clk 01:31:46]} {[%emt 00:00:06]} cxd4 {[%clk
01:31:52]} {[%emt 00:00:03]} 4. Nxd4 {[%clk 01:32:08]} {[%emt 00:00:08]} Nf6
{[%clk 01:32:20]} {[%emt 00:00:02]} 5. Nc3 {[%clk 01:32:29]} {[%emt 00:00:09]}
e5 {[%clk 01:32:46]} {[%emt 00:00:04]} 6. Ndb5 {[%clk 01:32:55]} {[%emt
00:00:04]} d6 {[%clk 01:33:12]} {[%emt 00:00:04]} 7. Bg5 {[%clk 01:33:19]}
{[%emt 00:00:06]} a6 {[%clk 01:33:38]} {[%emt 00:00:03]} 8. Na3 {[%clk
01:33:46]} {[%emt 00:00:04]} b5 {[%clk 01:34:05]} {[%emt 00:00:03]} 9. Nd5
{[%clk 01:34:11]} {[%emt 00:00:05]} Be7 {[%clk 01:34:31]} {[%emt 00:00:04]} 10.
Bxf6 {[%clk 01:34:35]} {[%emt 00:00:06]} Bxf6 {[%clk 01:34:57]} {[%emt
00:00:03]} 11. c3 {[%clk 01:34:48]} {[%emt 00:00:18]} Ne7 {[%clk 01:35:22]}
{[%emt 00:00:04]} 12. Nxf6+ {[%clk 01:35:14]} {[%emt 00:00:04]} gxf6 {[%clk
01:35:48]} {[%emt 00:00:04]} 13. Nc2 {[%clk 01:35:32]} {[%emt 00:00:13]} Bb7
{[%clk 01:35:57]} {[%emt 00:00:20]} 14. Bd3 {[%clk 01:35:46]} {[%emt 00:00:17]}
d5 {[%clk 01:36:22]} {[%emt 00:00:05]} 15. exd5 {[%clk 01:36:06]} {[%emt
00:00:10]} Qxd5 {[%clk 01:36:48]} {[%emt 00:00:04]} 16. Ne3 {[%clk 01:36:31]}
{[%emt 00:00:04]} Qe6 {[%clk 01:37:16]} {[%emt 00:00:03]} 17. a4 {[%emt
00:01:15]} Rd8 {[%clk 01:37:09]} 18. Qc2 {[%clk 01:34:59]} {[%emt 00:01:53]} e4
{[%clk 01:33:40]} {[%emt 00:03:59]} 19. Be2 {[%clk 01:35:06]} {[%emt 00:00:23]}
O-O {[%clk 01:33:18]} {[%emt 00:00:52]} 20. axb5 {[%clk 01:34:07]} {[%emt
00:01:29]} axb5 {[%clk 01:33:42]} {[%emt 00:00:05]} 21. O-O {[%clk 01:33:04]}
{[%emt 00:01:33]} f5 {[%clk 01:31:26]} {[%emt 00:02:46]} 22. g3 {[%clk
01:33:00]} {[%emt 00:00:34]} Ng6 {[%clk 01:10:02]} {[%emt 00:21:55]} 23. Ra5
{[%clk 01:24:02]} {[%emt 00:09:28]} f4 {[%clk 01:07:17]} {[%emt 00:03:14]} 24.
gxf4 {[%clk 01:22:49]} {[%emt 00:01:42]} Nxf4 {[%clk 01:05:05]} {[%emt
00:02:44]} 25. Rxb5 {[%clk 01:19:25]} {[%emt 00:03:54]} Ba6 {[%clk 01:02:47]}
{[%emt 00:02:48]} 26. Bc4 {[%clk 01:00:17]} {[%emt 00:19:37]} Qg6+ {[%clk
00:39:20]} {[%emt 00:23:57]} 27. Kh1 {[%clk 00:59:57]} {[%emt 00:00:50]} Bxb5
{[%clk 00:39:32]} {[%emt 00:00:18]} 28. Rg1 {[%clk 01:00:06]} {[%emt 00:00:22]}
Bxc4 {[%clk 00:39:38]} {[%emt 00:00:24]} 29. Nxc4 {[%clk 00:54:45]} {[%emt
00:05:51]} Nh3 {[%clk 00:38:37]} {[%emt 00:01:30]} 30. Rxg6+ {[%clk 00:53:18]}
{[%emt 00:01:58]} fxg6 {[%clk 00:39:03]} {[%emt 00:00:03]} 31. Qb3 {[%clk
00:44:18]} {[%emt 00:09:31]} Rd1+ {[%clk 00:39:10]} {[%emt 00:00:22]} 32. Kg2
{[%clk 00:39:17]} {[%emt 00:05:31]} Rg1+ {[%clk 00:39:29]} {[%emt 00:00:11]} 33.
Kxh3 {[%clk 00:38:19]} {[%emt 00:01:28]} Rf3+ {[%clk 00:39:55]} {[%emt
00:00:04]} 0-1

[Event "NJSK 2022 Jeugd C"]
[Site "Almelo, Netherlands"]
[Date "2022.05.05"]
[Round "6.2"]
[White "Van Batenburg, Mees"]
[Black "Van Arendonk, Polle"]
[Result "1/2-1/2"]
[TimeControl "90min + 30sec/move"]
[WhiteElo "1713"]
[BlackElo "1784"]

1. d4 {[%clk 01:30:53]} {[%emt 00:00:07]} Nf6 {[%clk 01:30:56]} {[%emt
00:00:05]} 2. Nc3 {[%clk 01:31:19]} {[%emt 00:00:03]} d5 {[%clk 01:31:21]}
{[%emt 00:00:06]} 3. Bf4 {[%clk 01:31:45]} {[%emt 00:00:04]} c5 {[%clk
01:31:42]} {[%emt 00:00:09]} 4. e3 {[%clk 01:32:11]} {[%emt 00:00:03]} cxd4
{[%clk 01:32:09]} {[%emt 00:00:04]} 5. exd4 {[%clk 01:32:37]} {[%emt 00:00:04]}
a6 {[%clk 01:32:30]} {[%emt 00:00:09]} 6. Nf3 {[%clk 01:32:54]} {[%emt
00:00:13]} Nc6 {[%clk 01:32:52]} {[%emt 00:00:07]} 7. Ne5 {[%clk 01:33:21]}
{[%emt 00:00:04]} Bd7 {[%clk 01:33:09]} {[%emt 00:00:13]} 8. g3 {[%clk
01:32:40]} {[%emt 00:01:10]} e6 {[%clk 01:31:31]} {[%emt 00:02:08]} 9. Bg2
{[%clk 01:32:58]} {[%emt 00:00:12]} Be7 {[%clk 01:24:07]} {[%emt 00:07:54]} 10.
O-O {[%clk 01:33:20]} {[%emt 00:00:08]} O-O {[%clk 01:24:33]} {[%emt 00:00:05]}
11. Ne2 {[%clk 01:33:21]} {[%emt 00:00:29]} Na5 {[%clk 01:11:45]} {[%emt
00:13:17]} 12. c3 {[%clk 01:26:47]} {[%emt 00:07:04]} Bb5 {[%clk 01:08:48]}
{[%emt 00:03:27]} 13. Rc1 {[%clk 01:18:31]} {[%emt 00:08:46]} Rc8 {[%clk
01:04:12]} {[%emt 00:05:07]} 14. b3 {[%clk 01:15:06]} {[%emt 00:03:55]} Nd7
{[%clk 00:58:38]} {[%emt 00:06:04]} 15. Qd2 {[%clk 01:05:05]} {[%emt 00:10:30]}
Nxe5 {[%clk 00:56:08]} {[%emt 00:03:00]} 16. dxe5 {[%clk 01:03:17]} {[%emt
00:02:18]} Qc7 {[%clk 00:47:14]} {[%emt 00:09:24]} 17. Rfd1 {[%clk 00:58:43]}
{[%emt 00:05:03]} Bxe2 {[%clk 00:47:36]} {[%emt 00:00:09]} 18. Qxe2 {[%clk
00:58:59]} {[%emt 00:00:15]} b5 {[%clk 00:44:50]} {[%emt 00:03:15]} 19. h4
{[%clk 00:52:39]} {[%emt 00:06:49]} Nb7 {[%clk 00:37:02]} {[%emt 00:08:19]} 20.
h5 {[%clk 00:47:28]} {[%emt 00:05:41]} h6 {[%clk 00:34:43]} {[%emt 00:02:50]}
21. Qd2 {[%clk 00:26:32]} {[%emt 00:21:25]} Rfd8 {[%clk 00:26:15]} {[%emt
00:08:58]} 22. b4 {[%clk 00:25:03]} {[%emt 00:01:59]} Rd7 {[%clk 00:22:16]}
{[%emt 00:04:29]} 23. Bf1 {[%clk 00:24:05]} {[%emt 00:01:27]} Bf8 {[%clk
00:16:42]} {[%emt 00:06:05]} 24. a3 {[%clk 00:19:46]} {[%emt 00:04:49]} Nd8
{[%clk 00:15:50]} {[%emt 00:01:22]} 25. c4 {[%clk 00:18:29]} {[%emt 00:01:47]}
bxc4 {[%clk 00:14:30]} {[%emt 00:01:50]} 26. Bxc4 {[%clk 00:18:46]} {[%emt
00:00:13]} Qa7 {[%clk 00:13:39]} {[%emt 00:01:22]} 27. Be2 {[%clk 00:17:42]}
{[%emt 00:01:33]} Rdc7 {[%clk 00:13:36]} {[%emt 00:00:33]} 28. Rxc7 {[%clk
00:17:00]} {[%emt 00:01:12]} Rxc7 {[%clk 00:14:00]} {[%emt 00:00:06]} 29. Rc1
{[%clk 00:16:09]} {[%emt 00:01:21]} Rxc1+ {[%clk 00:09:50]} {[%emt 00:04:40]}
30. Qxc1 {[%clk 00:16:33]} {[%emt 00:00:06]} a5 {[%clk 00:10:08]} {[%emt
00:00:13]} 1/2-1/2